[Event "Polish Youth G16 Championship 2023"]
[Site "Jastrzebia Gora"]
[Date "2023.03.12"]
[Round "1.1"]
[White "Bandyk, Joanna"]
[Black "Siekanska, Maria"]
[Result "1-0"]
[ECO "B97"]
[WhiteElo "1459"]
[BlackElo "1996"]
[Annotator "TA"]
[PlyCount "80"]
[EventDate "2023.03.11"]
[EventType "swiss"]
[EventCountry "POL"]
[SourceTitle "playchess.com"]
[Source "ChessBase"]
[SourceQuality "1"]
[TimeControl "40/5400+30:1800+30"]

{[%evp 14,80,6,8,79,7,61,-16,17,0,10,-22,-9,-33,5,-18,13,-72,-61,-108,-89,-89,37,31,33,-46,133,137,372,362,360,333,346,319,320,290,300,272,287,302,255,250,253,218,431,323,485,477,521,520,507,494,680,627,650,635,630,624,587,404,435,430,412,429,401,327,429,433,2508]} 1. e4 {[%emt 0:00:04]} c5 {[%emt 0:00:05]} 2. Nf3 {[%emt 0:00:06]} d6 {[%emt 0:00:07]} 3. d4 {[%emt 0:00:08]} cxd4 {[%emt 0:00:05]} 4. Nxd4 {[%emt 0:00:06]} Nf6 {[%emt 0:00:08]} 5. Nc3 {[%emt 0:00:13]} a6 {[%emt 0:00:08]} 6. Bg5 {[%emt 0:02:07]} e6 {[%emt 0:00:27]} 7. f4 {[%emt 0:01:23]} Qb6 {[%emt 0:01:53]} 8. Nb3 {[%emt 0:07:19]} Qc7 {[%emt 0:01:30] [#] B97: Sicilian Najdorf: Poisoned Pawn.} (8... Be7 $11 {remains equal.}) 9. Qd2 {[%emt 0:03:13] White is more active.} ({White should try} 9. Bxf6 $1 $16 gxf6 10. Bd3) 9... b5 {[%emt 0:03:44] [#]} (9... Nbd7 $11) 10. Bd3 $146 {[%emt 0:08:11]} (10. Bxf6 $1 $14 gxf6 11. g3) ({Predecessor:} 10. a3 Nc6 11. Be2 Be7 12. O-O O-O 13. Rad1 Rd8 14. Qe3 h6 15. Bxf6 Bxf6 16. Bf3 {0-1 Karpov,V (2210)-Itkin,D (2244) RUS-ch54 sf Sibiria 2001 (9)}) 10... Bb7 {[%emt 0:02:11] The position is equal.} 11. O-O-O {[%emt 0:06:00]} Nbd7 {[%emt 0:21:30]} 12. Rhe1 {[%emt 0:10:04]} Be7 {[%emt 0:08:53]} 13. Kb1 {[%emt 0:08:34][%cal Oe4e5]} b4 {[%emt 0:04:08]} (13... h6 $5 {[%cal Rh6g5]} 14. Bh4 O-O $15) 14. Ne2 {[%emt 0:04:42]} (14. Na4 $5 {[%cal Rd2b4]}) 14... Bxe4 {[%emt 0:06:08]} (14... Nxe4 $2 15. Bxe4 Bxe4 16. Bxe7 Kxe7 17. Ng3 Bxc2+ 18. Qxc2 Qxc2+ 19. Kxc2 $18) 15. Ned4 {[%emt 0:05:14]} (15. Qxb4 Bxg2 16. Rg1 Bf3 $15) (15. Bxf6 $11 Nxf6 16. Bxe4 (16. Qxb4 Bxd3 17. cxd3 O-O $15) 16... Nxe4 17. Qxb4) 15... Bxd3 $17 {[%emt 0:01:16]} 16. Qxd3 {[%emt 0:00:10]} (16. cxd3 $15 {is more appropriate.} a5 17. Rc1) 16... O-O {[%emt 0:01:00]} 17. Nf5 {[%emt 0:13:11][%mdl 64] [#] Discovered Attack} exf5 {[%emt 0:04:20]} (17... Bd8 $1 $17 18. Nxd6 Nd5) 18. Rxe7 $14 {[%emt 0:00:07]} Ne4 {[%emt 0:00:17]} 19. Bh4 {[%emt 0:02:29]} (19. Nd4 $14 Rac8 20. Bh6 (20. Nxf5 Nf2 $15) (20. Qxa6 b3 $15)) 19... Rfe8 $2 {[%emt 0:13:15]} (19... Rac8 $15 {stays ahead.}) 20. Qd5 $1 $36 {[%emt 0:03:30][%csl LRf5,LRf7][%mdl 2048] White is in control.} Rxe7 {[%emt 0:06:07] This move loses the game for Black.} (20... Kh8 $16 {is a better defense.}) 21. Qxa8+ $18 {[%emt 0:01:55]} (21. Bxe7 $2 {perishes.} Rc8 22. Ka1 Qxc2 $19) 21... Nf8 {[%emt 0:00:05]} 22. Bxe7 {[%emt 0:00:26]} Qxe7 {[%emt 0:00:08]} 23. Qxa6 {[%emt 0:01:09]} Qh4 {[%emt 0:00:59]} 24. Qf1 {[%emt 0:02:53]} Ne6 {[%emt 0:04:16]} 25. Nd2 {[%emt 0:03:44]} d5 {[%emt 0:04:51]} 26. Nf3 {[%emt 0:02:51]} Qxf4 {[%emt 0:01:03]} 27. Rxd5 {[%emt 0:00:38][%cal Bd1d5,Bd5f5,Bf5f1][%mdl 32] Qb5 is the strong threat.} g6 {[%emt 0:00:43]} 28. Qe1 {[%emt 0:01:40]} g5 $2 {[%emt 0:02:17]} (28... Qb8 {keeps fighting.}) 29. Qc1 {[%emt 0:01:30] Strongly threatening Qxf4.} Qb8 {[%emt 0:04:42]} (29... Qg4 $142 30. Qf1 Kg7) 30. Rxf5 {[%emt 0:01:22]} g4 {[%emt 0:00:23]} 31. Nd2 {[%emt 0:01:46][%cal Bf3d2,Bd2b3,Bb3d4][%mdl 32]} Nd6 {[%emt 0:00:59]} 32. Rf1 {[%emt 0:00:56]} Nb5 {[%emt 0:01:45]} 33. Nb3 {[%emt 0:00:43]} Qxh2 {[%emt 0:00:29]} 34. Qd2 {[%emt 0:00:43]} h5 {[%emt 0:03:32]} 35. Qd5 {[%emt 0:01:19]} Nd6 {[%emt 0:02:02]} 36. Rd1 {[%emt 0:01:38]} Ne8 {[%emt 0:00:14]} 37. Nd4 {[%emt 0:01:31]} N8c7 {[%emt 0:00:38]} 38. Qe4 {[%emt 0:00:20]} Qd6 {[%emt 0:01:10]} 39. Qd3 {[%emt 0:00:46]} Nf4 {[%emt 0:00:38]} 40. Qd2 {[%emt 0:00:00]} Qe6 {Weighted Error Value: White=0.35/Black=0.55} (40... Ng6 $142 41. Qe1 Nd5 42. Qe8+ Qf8) 1-0

[Event "Polish Youth G16 Championship 2023"]
[Site "Jastrzebia Gora"]
[Date "2023.03.12"]
[Round "1.2"]
[White "Smietanska, Wiktoria"]
[Black "Niedorys, Karolina"]
[Result "1-0"]
[ECO "B75"]
[WhiteElo "1954"]
[BlackElo "1458"]
[Annotator "TA"]
[PlyCount "83"]
[EventDate "2023.03.11"]
[EventType "swiss"]
[EventCountry "POL"]
[SourceTitle "playchess.com"]
[Source "ChessBase"]
[SourceQuality "1"]
[TimeControl "40/5400+30:1800+30"]

{[%evp 17,83,60,66,94,110,102,138,68,65,57,84,42,50,50,31,44,60,60,113,69,104,91,135,134,304,273,329,318,322,331,333,316,359,371,384,351,326,332,479,400,442,430,590,577,713,444,401,366,647,657,643,621,612,468,708,671,617,537,712,584,971,927,961,943,29980,29981,29991,29992]} 1. e4 {[%emt 0:00:03]} c5 {[%emt 0:00:08]} 2. Nf3 {[%emt 0:00:05]} d6 {[%emt 0:00:07]} 3. d4 {[%emt 0:00:06]} cxd4 {[%emt 0:00:05]} 4. Nxd4 {[%emt 0:00:07]} Nf6 {[%emt 0:00:20]} 5. Nc3 {[%emt 0:00:08]} g6 {[%emt 0:00:08]} 6. Be3 {[%emt 0:00:14]} Bg7 {[%emt 0:00:14]} 7. f3 {[%emt 0:00:07]} Nc6 {[%emt 0:04:08]} 8. Qd2 {[%emt 0:01:29]} O-O {[%emt 0:00:15]} 9. g4 {[%emt 0:00:17][%cal Bg2g4,Bg4g5][%mdl 32]} d5 {[%emt 0:14:20]} 10. g5 {[%emt 0:09:17] White is more active. B76: Sicilian Dragon: Yugoslav Attack, 9 g4 and 9 0-0-0.} Nh5 {[%emt 0:16:04]} 11. exd5 {[%emt 0:27:14]} (11. Nxd5 $6 Be6 $11) 11... Nb4 {[%emt 0:24:57]} 12. O-O-O {[%emt 0:18:46]} (12. Bc4 $16) 12... Nxd5 $14 {[%emt 0:08:33]} 13. Ndb5 {[%emt 0:04:25][%csl LRa7,LRd5] [#]} e6 $146 {[%emt 0:07:05]} ({Predecessor:} 13... a6 14. Nxd5 axb5 15. Nf6+ Nxf6 16. Qxd8 {1-0 Rivera,G (1784)-Campos,R Lima Ingenieros CC op 2nd 2012 (9)}) 14. Nxd5 {[%emt 0:02:01]} (14. Nxa7 $2 Bxc3 $19) (14. Bc5 {is more complex.} Be5 15. Kb1 Re8 16. Ne4) 14... exd5 {[%emt 0:01:36]} 15. Qxd5 {[%emt 0:06:18]} (15. Nxa7 $2 d4 16. Bxd4 (16. Nxc8 $2 Rxa2 17. c3 Qa5 $19) 16... Bxd4 17. Qxd4 (17. Nxc8 $2 Rxa2 $19) 17... Qxd4 18. Rxd4 Rxa7 $19) 15... Qxd5 {[%emt 0:01:43]} 16. Rxd5 {[%emt 0:00:08] Nc7 is the strong threat.} Be6 {[%emt 0:00:05]} 17. Rd2 {[%emt 0:01:16]} Rfc8 {[%emt 0:01:19] Inhibits Nc7.} ({Better is} 17... Be5 $14) 18. Kb1 {[%emt 0:01:08]} (18. Bxa7 $6 Be5 $11) 18... a6 {[%emt 0:01:08]} 19. Nd4 {[%emt 0:02:52][%cal Bb5d4,Bd4f5,Bf5e7][%mdl 32]} Bd5 {[%emt 0:03:26]} 20. Nf5 $1 {[%emt 0:17:20][%mdl 64] [#] Black must now prevent Ne7+. Discovered Attack} Bxf3 $2 {[%emt 0:02:11] This move loses the game for Black.} (20... Bxa2+ $16 21. Kxa2 gxf5) 21. Ne7+ $18 {[%emt 0:00:13]} Kh8 {[%emt 0:01:07] aiming for ...Re8.} 22. Nxc8 {[%emt 0:00:12]} Rxc8 {[%emt 0:00:26]} 23. Bg2 {[%emt 0:00:57]} Bxg2 {[%emt 0:00:16]} 24. Rxg2 {[%emt 0:00:05]} Be5 {[%emt 0:00:12]} 25. Rd2 {[%emt 0:00:26]} Kg7 {[%emt 0:00:14]} 26. Bd4 {[%emt 0:00:10]} Bxd4 {[%emt 0:00:05]} 27. Rxd4 {[%emt 0:00:05][%mdl 4096] Endgame KRR-KRN} Re8 {[%emt 0:00:13]} (27... Rc5 {was worth a try.} 28. Rd7 Rxg5 29. Rxb7 Nf6) 28. Rhd1 {[%emt 0:00:27]} Re2 {[%emt 0:00:06]} 29. Rd7 {[%emt 0:00:48]} Rxh2 {[%emt 0:00:29]} 30. Rf1 {[%emt 0:00:14]} Nf4 {[%emt 0:00:25]} 31. Rxb7 {[%emt 0:00:11] [#] Hoping for c4.} (31. Rxf4 $2 Rh1+) 31... h6 {[%emt 0:00:14]} 32. gxh6+ {[%emt 0:00:31]} (32. Rxf4 $2 {leads to mate.} Rh1+) 32... Kxh6 $2 {[%emt 0:00:06]} (32... Rxh6 33. c4 (33. Rxf4 $2 {gets mated.} Rh1+) 33... g5) 33. Rxf7 {[%emt 0:00:33]} (33. Rxf4 $2 {is a self mate.} Rh1+) 33... g5 {[%emt 0:00:12]} 34. b4 {[%emt 0:01:35]} Nd5 {[%emt 0:01:38]} 35. Re1 {[%emt 0:02:38] Re6+ would be deadly.} Nf4 {[%emt 0:00:41] Dodges Re6+} (35... Kg6 $142) 36. Rd1 {[%emt 0:00:50]} Kg6 {[%emt 0:00:17]} 37. Rf8 {[%emt 0:00:39]} Rg2 {[%emt 0:00:42]} 38. a4 {[%emt 0:00:40][%cal Ba2a4,Ba4b5,Bb5b6,Bb6b7][%mdl 32]} Kh5 {[%emt 0:00:08]} 39. b5 {[%emt 0:00:52]} axb5 {[%emt 0:00:34]} 40. axb5 {[%emt 0:00:00]} Kh4 {[%emt 0:00:00]} 41. b6 {[%emt 0:01:09]} Kg3 {[%emt 0:01:18]} 42. b7 {[%emt 0:00:07] Weighted Error Value: White=0.42/Black=0.58} 1-0

[Event "Polish Youth G16 Championship 2023"]
[Site "Jastrzebia Gora"]
[Date "2023.03.12"]
[Round "1.3"]
[White "Biniak, Zuzanna"]
[Black "Sprzeczka, Emilia"]
[Result "1/2-1/2"]
[ECO "B50"]
[WhiteElo "1457"]
[BlackElo "1887"]
[Annotator "NA RC COMBH"]
[PlyCount "130"]
[EventDate "2023.03.11"]
[EventType "swiss"]
[EventCountry "POL"]
[SourceTitle "playchess.com"]
[Source "ChessBase"]
[SourceQuality "1"]
[TimeControl "40/5400+30:1800+30"]

1. e4 {[%emt 0:00:02]} c5 {[%emt 0:00:08]} 2. Nf3 {[%emt 0:00:05]} d6 {[%emt 0:00:07]} 3. d3 {[%emt 0:00:05]} Nf6 {[%emt 0:03:17]} 4. g3 {[%emt 0:00:55]} g6 {[%emt 0:00:42]} 5. Bg2 {[%emt 0:00:11]} Bg7 {[%emt 0:00:39]} 6. Nbd2 {[%emt 0:00:44]} Nc6 {[%emt 0:03:25]} 7. c3 {[%emt 0:01:29]} e5 {[%emt 0:01:23]} 8. O-O {[%emt 0:02:21]} O-O {[%emt 0:00:51]} 9. Ne1 {[%emt 0:08:45]} Be6 {[%emt 0:17:56]} 10. f4 {[%emt 0:07:41]} exf4 {[%emt 0:06:48]} 11. gxf4 {[%emt 0:00:50]} Qd7 {[%emt 0:09:08]} 12. Qf3 {[%emt 0:13:01]} Bg4 {[%emt 0:13:52]} 13. Qe3 {[%emt 0:10:52]} Rae8 {[%emt 0:09:15]} 14. h3 {[%emt 0:06:34]} Be6 {[%emt 0:02:40]} 15. Qf3 {[%emt 0:08:47]} d5 {[%emt 0:06:01]} 16. Nc2 {[%emt 0:07:31]} dxe4 {[%emt 0:04:22]} 17. dxe4 {[%emt 0:00:40]} Qe7 {[%emt 0:07:16]} 18. Ne3 {[%emt 0:06:21]} Rd8 {[%emt 0:02:51]} 19. Qf2 {[%emt 0:06:41]} Qc7 {[%emt 0:03:07]} 20. e5 {[%emt 0:06:49]} Nd5 {[%emt 0:02:45]} 21. Nxd5 {[%emt 0:00:12]} Bxd5 {[%emt 0:00:07]} 22. Qxc5 {[%emt 0:01:33]} Bxg2 {[%emt 0:00:46]} 23. Kxg2 {[%emt 0:00:08]} b6 {[%emt 0:00:51]} 24. Qc4 {[%emt 0:03:55]} Qd7 {[%emt 0:01:22]} 25. Nf3 {[%emt 0:02:30]} Ne7 {[%emt 0:01:11]} 26. Nd4 {[%emt 0:01:40]} Nf5 {[%emt 0:01:30]} 27. Nxf5 {[%emt 0:01:41]} Qxf5 {[%emt 0:00:05]} 28. Be3 {[%emt 0:01:06]} Rd3 {[%emt 0:00:27]} 29. Rae1 {[%emt 0:00:35]} Rfd8 {[%emt 0:00:52]} 30. Re2 {[%emt 0:00:47]} Bh6 {[%emt 0:00:59]} 31. Rf3 {[%emt 0:00:33]} Rc8 {[%emt 0:00:24]} 32. Qb4 {[%emt 0:00:34]} Qe6 {[%emt 0:00:37]} 33. Qb3 {[%emt 0:00:39]} Qc6 {[%emt 0:00:24]} 34. Kf2 {[%emt 0:00:30]} Rcd8 {[%emt 0:00:38]} 35. Qc2 {[%emt 0:00:14]} Qd5 {[%emt 0:00:38]} 36. Qb3 {[%emt 0:00:23]} Qe4 {[%emt 0:00:28]} 37. Qb4 {[%emt 0:00:35]} Qc6 {[%emt 0:00:30]} 38. Qb3 {[%emt 0:00:34]} Qb7 {[%emt 0:00:29]} 39. Qc4 {[%emt 0:00:35]} Qe7 {[%emt 0:00:25]} 40. Kg2 {[%emt 0:00:00]} Qd7 {[%emt 0:00:00]} 41. Qe4 {[%emt 0:03:12]} Qe6 {[%emt 0:08:37]} 42. a3 {[%emt 0:02:27]} Qd7 {[%emt 0:03:15]} 43. Bd4 {[%emt 0:00:55]} Rxf3 {[%emt 0:00:36]} 44. Qxf3 {[%emt 0:00:23]} Qf5 {[%emt 0:01:02]} 45. Kg3 {[%emt 0:04:24]} Re8 {[%emt 0:02:54]} 46. Qe4 {[%emt 0:05:02]} Qe6 {[%emt 0:01:47]} 47. Rf2 {[%emt 0:02:49]} Qe7 {[%emt 0:04:49]} 48. f5 {[%emt 0:02:47]} Bg7 {[%emt 0:01:33]} 49. Re2 {[%emt 0:02:57]} Qg5+ {[%emt 0:04:17]} 50. Qg4 {[%emt 0:00:09]} Qe7 {[%emt 0:01:34]} 51. e6 {[%emt 0:01:44]} Qd6+ {[%emt 0:01:36]} 52. Qf4 {[%emt 0:00:29]} Qxf4+ {[%emt 0:01:28]} 53. Kxf4 {[%emt 0:00:06]} Bh6+ {[%emt 0:01:25]} 54. Ke5 {[%emt 0:01:55]} Bg7+ {[%emt 0:01:11]} 55. Kd5 {[%emt 0:02:37]} Rd8+ {[%emt 0:01:14]} 56. Ke4 {[%emt 0:00:43]} gxf5+ {[%emt 0:00:40]} 57. Kxf5 {[%emt 0:00:46]} fxe6+ {[%emt 0:00:28]} 58. Rxe6 {[%emt 0:00:17]} Bxd4 {[%emt 0:00:30]} 59. cxd4 {[%emt 0:00:07]} Rxd4 {[%emt 0:00:21]} 60. Re7 {[%emt 0:02:52]} Rd2 {[%emt 0:00:39]} 61. Rxa7 {[%emt 0:00:41]} Rxb2 {[%emt 0:00:08]} 62. Rb7 {[%emt 0:00:48]} Rb3 {[%emt 0:00:55]} 63. Kg4 {[%emt 0:00:12]} Rxa3 {[%emt 0:01:02]} 64. Rxb6 {[%emt 0:00:05]} Ra5 {[%emt 0:00:09]} 65. Rb7 {[%emt 0:00:15]} Rc5 {[%emt 0:00:14]} 1/2-1/2

[Event "Polish Youth G16 Championship 2023"]
[Site "Jastrzebia Gora"]
[Date "2023.03.12"]
[Round "1.4"]
[White "Pawicka, Magdalena"]
[Black "Pniewska, Beata"]
[Result "1-0"]
[ECO "C10"]
[WhiteElo "1805"]
[BlackElo "1448"]
[Annotator "NA RC COMBH"]
[PlyCount "79"]
[EventDate "2023.03.11"]
[EventType "swiss"]
[EventCountry "POL"]
[SourceTitle "playchess.com"]
[Source "ChessBase"]
[SourceQuality "1"]
[TimeControl "40/5400+30:1800+30"]

1. e4 {[%emt 0:00:05]} e6 {[%emt 0:00:09]} 2. d4 {[%emt 0:01:08]} d5 {[%emt 0:00:17]} 3. Nc3 {[%emt 0:02:10]} dxe4 {[%emt 0:01:10]} 4. Nxe4 {[%emt 0:00:08]} Nd7 {[%emt 0:00:28]} 5. Nf3 {[%emt 0:04:41]} Ndf6 {[%emt 0:01:33]} 6. Ng3 {[%emt 0:03:36]} c5 {[%emt 0:01:35]} 7. c3 {[%emt 0:08:28]} cxd4 {[%emt 0:02:15]} 8. Nxd4 {[%emt 0:03:39]} e5 {[%emt 0:02:15]} 9. Qe2 {[%emt 0:03:52]} Qe7 {[%emt 0:11:39]} 10. Ngf5 {[%emt 0:27:10]} Bxf5 {[%emt 0:01:30]} 11. Nxf5 {[%emt 0:00:05]} Qe6 {[%emt 0:02:51]} 12. Qb5+ {[%emt 0:02:48]} Nd7 {[%emt 0:01:07]} 13. Qxb7 {[%emt 0:01:35]} Rb8 {[%emt 0:01:13]} 14. Qf3 {[%emt 0:00:36]} e4 {[%emt 0:06:19]} 15. Qf4 {[%emt 0:02:37]} Ne7 {[%emt 0:02:53]} 16. Nd6+ {[%emt 0:00:35]} Kd8 {[%emt 0:00:49]} 17. Nxf7+ {[%emt 0:00:10]} Ke8 {[%emt 0:00:17]} 18. Nxh8 {[%emt 0:00:29]} Nd5 {[%emt 0:00:23]} 19. Qf7+ {[%emt 0:02:24]} Qxf7 {[%emt 0:00:14]} 20. Nxf7 {[%emt 0:00:02]} Kxf7 {[%emt 0:00:13]} 21. Bc4 {[%emt 0:00:03]} N7b6 {[%emt 0:01:53]} 22. Bxd5+ {[%emt 0:00:09]} Nxd5 {[%emt 0:00:13]} 23. O-O {[%emt 0:00:18]} Bc5 {[%emt 0:00:38]} 24. c4 {[%emt 0:01:13]} Nb4 {[%emt 0:01:27]} 25. Be3 {[%emt 0:00:09]} Bxe3 {[%emt 0:01:47]} 26. fxe3+ {[%emt 0:00:03]} Ke6 {[%emt 0:00:13]} 27. b3 {[%emt 0:01:50]} Rb7 {[%emt 0:04:05]} 28. Rf2 {[%emt 0:04:29]} Ke5 {[%emt 0:05:05]} 29. Raf1 {[%emt 0:00:47]} a6 {[%emt 0:03:05]} 30. Rf7 {[%emt 0:00:50]} Rb8 {[%emt 0:03:50]} 31. Re7+ {[%emt 0:00:52]} Kd6 {[%emt 0:00:35]} 32. Rxg7 {[%emt 0:00:07]} Nxa2 {[%emt 0:01:16]} 33. Rf6+ {[%emt 0:01:00]} Kc5 {[%emt 0:02:22]} 34. Rxa6 {[%emt 0:00:42]} Nc3 {[%emt 0:01:55]} 35. Rxh7 {[%emt 0:13:20]} Kb4 {[%emt 0:02:01]} 36. Raa7 {[%emt 0:02:38]} Rf8 {[%emt 0:02:09]} 37. Rhf7 {[%emt 0:00:26]} Rxf7 {[%emt 0:01:28]} 38. Rxf7 {[%emt 0:00:05]} Kxb3 {[%emt 0:00:14]} 39. c5 {[%emt 0:00:02]} Nd1 {[%emt 0:01:14]} 40. c6 {[%emt 0:00:00]} 1-0

[Event "Polish Youth G16 Championship 2023"]
[Site "Jastrzebia Gora"]
[Date "2023.03.12"]
[Round "1.5"]
[White "Nowak, Zuzanna"]
[Black "Ziobrowska, Maja"]
[Result "0-1"]
[ECO "C66"]
[WhiteElo "1427"]
[BlackElo "1758"]
[Annotator "NA RC COMBH"]
[PlyCount "48"]
[EventDate "2023.03.11"]
[EventType "swiss"]
[EventCountry "POL"]
[SourceTitle "playchess.com"]
[Source "ChessBase"]
[SourceQuality "1"]
[TimeControl "40/5400+30:1800+30"]

1. e4 e5 2. Nf3 Nc6 3. Bb5 Nf6 4. O-O d6 5. Re1 Bd7 6. c3 Be7 7. d4 O-O 8. Nbd2 Nxd4 9. cxd4 Bxb5 10. Qb3 Ba6 11. dxe5 Nd7 12. exd6 Bxd6 13. e5 Nc5 14. Qc2 Be7 15. b3 Nd3 16. Rd1 Nb4 17. Qc3 Be2 18. Re1 Qd3 19. Qxc7 Bxf3 20. Nxf3 Nc2 21. Qxe7 Nxe1 22. Nxe1 Qc3 23. Nc2 Rfd8 24. Bg5 Qxa1+ 0-1

[Event "Polish Youth G16 Championship 2023"]
[Site "Jastrzebia Gora"]
[Date "2023.03.12"]
[Round "1.6"]
[White "Kawa, Anna"]
[Black "Michalska, Anna-Maria"]
[Result "1-0"]
[ECO "B14"]
[WhiteElo "1743"]
[BlackElo "1417"]
[Annotator "NA RC COMBH"]
[PlyCount "93"]
[EventDate "2023.03.11"]
[EventType "swiss"]
[EventCountry "POL"]
[SourceTitle "playchess.com"]
[Source "ChessBase"]
[SourceQuality "1"]
[TimeControl "40/5400+30:1800+30"]

1. e4 {[%emt 0:00:04]} c6 {[%emt 0:00:04]} 2. d4 {[%emt 0:00:18]} d5 {[%emt 0:00:08]} 3. exd5 {[%emt 0:00:38]} cxd5 {[%emt 0:00:09]} 4. c4 {[%emt 0:00:34]} e6 {[%emt 0:05:03]} 5. Nc3 {[%emt 0:01:21]} Nf6 {[%emt 0:02:26]} 6. Nf3 {[%emt 0:02:11]} Be7 {[%emt 0:02:52]} 7. Bf4 {[%emt 0:04:21]} O-O {[%emt 0:07:49]} 8. c5 {[%emt 0:06:21]} b6 {[%emt 0:05:24]} 9. b4 {[%emt 0:05:11]} Bb7 {[%emt 0:07:57]} 10. Bb5 {[%emt 0:13:25]} a6 {[%emt 0:04:56]} 11. Be2 {[%emt 0:05:39]} Ne4 {[%emt 0:05:52]} 12. Rc1 {[%emt 0:10:40]} Nc6 {[%emt 0:18:24]} 13. a3 {[%emt 0:08:16]} Rc8 {[%emt 0:03:42]} 14. O-O {[%emt 0:03:16]} b5 {[%emt 0:04:49]} 15. Qb3 {[%emt 0:08:52]} Bf6 {[%emt 0:11:25]} 16. Rfd1 {[%emt 0:00:43]} Re8 {[%emt 0:02:55]} 17. a4 {[%emt 0:04:16]} Nxc3 {[%emt 0:00:35]} 18. Rxc3 {[%emt 0:00:23]} Nxd4 {[%emt 0:08:22]} 19. Nxd4 {[%emt 0:02:27]} Bxd4 {[%emt 0:02:51]} 20. Rxd4 {[%emt 0:11:21]} e5 {[%emt 0:01:03]} 21. Bxe5 {[%emt 0:05:10]} Rxe5 {[%emt 0:00:17]} 22. Kf1 {[%emt 0:00:48]} Qe7 {[%emt 0:01:29]} 23. Qc2 {[%emt 0:02:37]} Re8 {[%emt 0:00:37]} 24. Rd2 {[%emt 0:01:13]} Bc6 {[%emt 0:00:58]} 25. Rh3 {[%emt 0:00:57]} g6 {[%emt 0:00:48]} 26. a5 {[%emt 0:00:57]} Qf6 {[%emt 0:00:32]} 27. Qd1 {[%emt 0:01:08]} Re4 {[%emt 0:00:58]} 28. Rf3 {[%emt 0:00:36]} Qe5 {[%emt 0:00:21]} 29. g3 {[%emt 0:00:37]} Rxb4 {[%emt 0:01:01]} 30. Re3 {[%emt 0:00:10]} Re4 {[%emt 0:00:11]} 31. Rxe4 {[%emt 0:00:47]} Qxe4 {[%emt 0:00:19]} 32. Bf3 {[%emt 0:00:12]} Qc4+ {[%emt 0:00:30]} 33. Kg2 {[%emt 0:00:08]} Rd8 {[%emt 0:01:25]} 34. Rc2 {[%emt 0:00:29]} Qb4 {[%emt 0:00:28]} 35. Qa1 {[%emt 0:00:20]} Qb3 {[%emt 0:00:24]} 36. Qf6 {[%emt 0:01:04]} Qxc2 {[%emt 0:00:22]} 37. Qxd8+ {[%emt 0:00:03]} Kg7 {[%emt 0:00:21]} 38. Qd6 {[%emt 0:00:12]} b4 {[%emt 0:01:01]} 39. Qxc6 {[%emt 0:00:18]} b3 {[%emt 0:00:14]} 40. Qxd5 {[%emt 0:00:00]} b2 {[%emt 0:00:00]} 41. Qd4+ {[%emt 0:00:53]} Kg8 {[%emt 0:00:38]} 42. Be4 {[%emt 0:03:41]} Qc1 {[%emt 0:00:31]} 43. Qb4 {[%emt 0:04:12]} f5 {[%emt 0:01:02]} 44. Bd3 {[%emt 0:02:18]} Kf7 {[%emt 0:05:26]} 45. Qb3+ {[%emt 0:06:48]} Ke7 {[%emt 0:00:45]} 46. Qb7+ {[%emt 0:01:08]} Kd8 {[%emt 0:01:14]} 47. c6 {[%emt 0:00:47]} 1-0

[Event "Polish Youth G16 Championship 2023"]
[Site "Jastrzebia Gora"]
[Date "2023.03.12"]
[Round "1.7"]
[White "Predkiewicz, Paulina"]
[Black "Szczotka, Klara"]
[Result "0-1"]
[ECO "B12"]
[WhiteElo "1402"]
[BlackElo "1739"]
[Annotator "NA RC COMBH"]
[PlyCount "164"]
[EventDate "2023.03.11"]
[EventType "swiss"]
[EventCountry "POL"]
[SourceTitle "playchess.com"]
[Source "ChessBase"]
[SourceQuality "1"]
[TimeControl "40/5400+30:1800+30"]

1. e4 c6 2. d4 d5 3. e5 c5 4. dxc5 e6 5. Bd3 Nd7 6. Nf3 Bxc5 7. O-O Ne7 8. Bf4 a6 9. Nbd2 Ng6 10. Bg3 b5 11. Qe2 Bb7 12. Nb3 Be7 13. Nfd4 Qb6 14. Kh1 O-O 15. Rfe1 Rae8 16. f4 Nc5 17. Nxc5 Bxc5 18. Nb3 Be7 19. Qg4 a5 20. Qe2 b4 21. Nd2 a4 22. Rab1 Ra8 23. Nf3 Ba6 24. Bxa6 Rxa6 25. Qd2 Bc5 26. Qe2 Ne7 27. Ng5 Nf5 28. Qg4 h6 29. Nf3 Ne3 30. Qh3 Nxc2 31. Rec1 b3 32. axb3 axb3 33. Bh4 Be3 {[%emt 1:44:52]} 34. Rf1 {[%emt 1:46:36]} Ra4 {[%emt 0:00:42]} 35. f5 {[%emt 0:00:41]} exf5 {[%emt 0:00:47]} 36. Qxf5 {[%emt 0:00:06]} Qg6 {[%emt 0:00:18]} 37. Qxg6 {[%emt 0:00:57]} fxg6 {[%emt 0:00:01]} 38. Be7 {[%emt 0:00:19]} Re8 {[%emt 0:00:28]} 39. Bd6 {[%emt 0:00:06]} Ba7 {[%emt 0:01:47]} 40. Rfd1 {[%emt 0:00:00]} Ra5 {[%emt 0:00:00]} 41. Rd3 {[%emt 0:08:01]} Rb5 {[%emt 0:02:15]} 42. Rbd1 {[%emt 0:01:36]} Ne3 {[%emt 0:03:06]} 43. Ra1 {[%emt 0:05:18]} Bb6 {[%emt 0:02:26]} 44. h3 {[%emt 0:04:04]} Nc4 {[%emt 0:09:46]} 45. Rb1 {[%emt 0:02:36]} Nxd6 {[%emt 0:01:04]} 46. exd6 Rd8 47. Rc1 {[%emt 0:03:48]} Rxd6 {[%emt 0:01:20]} 48. Ne5 {[%emt 0:01:05]} Re6 {[%emt 0:04:32]} 49. Rc8+ {[%emt 0:04:34]} Kh7 {[%emt 0:00:08]} 50. Nd7 {[%emt 0:02:28]} Re1+ {[%emt 0:03:39]} 51. Kh2 {[%emt 0:00:09]} h5 {[%emt 0:01:14]} 52. Nxb6 {[%emt 0:02:10]} Rxb6 {[%emt 0:00:02]} 53. Rxd5 {[%emt 0:00:29]} Re2 {[%emt 0:01:19]} 54. Rd7 {[%emt 0:00:36]} Rxb2 {[%emt 0:06:07]} 55. Rcc7 {[%emt 0:00:22]} Rb4 {[%emt 0:00:55]} 56. Rxg7+ {[%emt 0:00:54]} Kh6 {[%emt 0:00:03]} 57. Kg3 {[%emt 0:00:55]} h4+ {[%emt 0:00:31]} 58. Kf3 {[%emt 0:00:33]} Rd2 {[%emt 0:01:25]} 59. Rh7+ {[%emt 0:00:40]} Kg5 {[%emt 0:00:01]} 60. Rc5+ {[%emt 0:00:33]} Kf6 {[%emt 0:00:09]} 61. Rc6+ {[%emt 0:00:40]} Ke5 {[%emt 0:00:35]} 62. Re7+ {[%emt 0:00:34]} Kd5 {[%emt 0:00:26]} 63. Ree6 {[%emt 0:00:26]} Rd3+ {[%emt 0:01:01]} 64. Ke2 {[%emt 0:00:23]} Re4+ {[%emt 0:00:42]} 65. Rxe4 Kxe4 66. Re6+ Kf5 67. Rb6 Rg3 68. Kf2 g5 69. Rb4 Ke5 70. Ke1 Kd5 71. Kd1 Kc5 72. Rb8 Kc4 73. Kc1 Rxg2 74. Rc8+ Kd5 75. Rc3 Rg3 76. Kb2 Kd4 77. Rxb3 Rxb3+ 78. Kxb3 Ke3 79. Kc3 Kf3 80. Kd3 Kg3 81. Ke3 Kxh3 82. Kf2 g4 0-1